bitfinex/quotes_BTCUSD_20240819
["timestamp","ask_amount","ask_price","bid_price","bid_amount"]
[1724034374326,0.001022,58699.0,58698.0,2.75103254]
[1724034374972,0.001022,58699.0,58698.0,1.25103254]
[1724034378913,0.001022,58699.0,58698.0,2.75103254]
[1724034379337,0.001022,58699.0,58698.0,2.75203254]
[1724034379580,0.001022,58699.0,58698.0,2.75403254]
[1724034383814,0.001022,58699.0,58698.0,2.75103254]
[1724034384527,0.001022,58699.0,58698.0,2.81533254]
[1724034384766,0.001022,58699.0,58698.0,2.579478]
[1724034385024,0.001022,58699.0,58698.0,2.724478]
[1724034385269,0.001022,58699.0,58698.0,2.89603254]
[1724034385516,0.001022,58699.0,58698.0,3.13454054]
[1724034385762,0.001022,58699.0,58698.0,3.13654054]
[1724034388431,0.0023724,58699.0,58698.0,3.13654054]
[1724034391632,0.0023724,58699.0,58698.0,2.89803254]
[1724034391844,0.0023724,58699.0,58698.0,1.39803254]
[1724034394865,0.0023724,58699.0,58698.0,1.63854054]
[1724034395087,0.2391,58716.0,58713.0,0.59612]
[1724034395308,0.2391,58716.0,58713.0,0.81282]
[1724034395516,0.02328142,58714.0,58713.0,0.81282]
[1724034395742,0.00863122,58714.0,58713.0,0.81282]
[1724034396265,0.00863122,58714.0,58713.0,1.051268]
[1724034396787,0.00863122,58714.0,58713.0,1.065268]
[1724034397044,0.00863122,58714.0,58713.0,1.051268]
[1724034397531,0.00863122,58714.0,58713.0,1.06172546]
[1724034398002,0.00863122,58714.0,58713.0,1.07572546]
[1724034398255,0.00863122,58714.0,58713.0,1.08972546]
[1724034398469,0.00863122,58714.0,58713.0,1.06172546]
[1724034398676,0.00863122,58714.0,58713.0,1.23602546]
[1724034398892,0.00863122,58714.0,58713.0,1.26402546]
[1724034399094,0.00863122,58714.0,58713.0,3.316428]
[1724034399309,0.00863122,58714.0,58713.0,3.313428]
[1724034399513,0.00863122,58714.0,58713.0,3.316428]
[1724034400145,0.00863122,58714.0,58713.0,3.025428]
[1724034400407,0.00863122,58714.0,58713.0,3.302428]
[1724034400614,0.00863122,58714.0,58713.0,3.00547346]
[1724034401225,0.00863122,58714.0,58713.0,2.97747346]
[1724034401435,0.00863122,58714.0,58713.0,3.08507346]
[1724034401663,0.00863122,58714.0,58713.0,3.256628]
[1724034401867,0.00863122,58714.0,58713.0,3.242628]
[1724034402484,0.00863122,58714.0,58713.0,3.228628]
[1724034402702,0.00863122,58714.0,58713.0,3.242628]
[1724034403121,0.00863122,58714.0,58713.0,3.228628]
[1724034403329,0.0002,58719.0,58718.0,0.50014]
[1724034403534,0.0117275,58724.0,58723.0,0.003]
[1724034403742,0.0117275,58724.0,58723.0,1.05857154]
[1724034403948,0.0117275,58724.0,58723.0,1.63538554]
[1724034404161,0.0117275,58724.0,58723.0,1.225424]
[1724034404380,0.0117275,58724.0,58723.0,0.987017]
[1724034405009,0.0117275,58724.0,58723.0,0.76261]
[1724034405010,0.1499275,58724.0,58723.0,0.76261]
[1724034405213,0.1499275,58724.0,58723.0,0.74861]
[1724034405419,0.1499275,58724.0,58723.0,1.001017]
[1724034405647,0.1499275,58724.0,58723.0,1.015017]
[1724034405854,0.1499275,58724.0,58723.0,1.001017]
[1724034406261,0.0117275,58724.0,58723.0,1.001017]
[1724034406468,0.0117275,58724.0,58723.0,1.015017]
[1724034406681,0.0117275,58724.0,58723.0,1.001017]
[1724034406906,0.0879275,58724.0,58723.0,0.47161]
[1724034407117,0.0879275,58724.0,58723.0,1.015017]
[1724034407118,0.1499275,58724.0,58723.0,1.015017]
[1724034407373,0.0117275,58724.0,58723.0,1.015017]
[1724034407575,0.0117275,58724.0,58723.0,0.724017]
[1724034407782,0.0117275,58724.0,58723.0,1.015017]
[1724034409022,0.0125485,58724.0,58723.0,1.015017]
[1724034411302,0.0125485,58724.0,58723.0,1.253424]
[1724034411505,0.0125485,58724.0,58723.0,1.329424]
[1724034413113,0.0125485,58724.0,58723.0,1.33985128]
[1724034414163,0.0125485,58724.0,58723.0,1.027566]
[1724034414371,0.0125485,58724.0,58723.0,1.015017]
[1724034414787,0.0912485,58724.0,58723.0,1.015017]
[1724034415193,0.0125485,58724.0,58723.0,1.253424]
[1724034416345,0.0125485,58724.0,58723.0,1.332124]
[1724034416804,0.0125485,58724.0,58723.0,1.253424]
[1724034417011,0.0125485,58724.0,58723.0,1.015017]
[1724034417393,0.0125485,58724.0,58723.0,1.253424]
[1724034417624,0.0125485,58724.0,58723.0,1.015017]
[1724034418036,0.0774485,58724.0,58723.0,1.015017]
[1724034418255,0.0774485,58724.0,58723.0,2.515017]
[1724034420016,0.0125485,58724.0,58723.0,2.515017]
[1724034420407,0.0125485,58724.0,58723.0,1.253424]
[1724034420909,0.0125485,58724.0,58723.0,1.015017]
[1724034422445,0.0125485,58724.0,58723.0,1.253424]
[1724034422638,0.0125485,58724.0,58723.0,0.840417]
[1724034423682,0.1550485,58724.0,58723.0,0.840417]
[1724034425382,0.0125485,58724.0,58723.0,0.840417]
[1724034430027,0.01188337,58724.0,58723.0,0.840417]
[1724034431960,0.01188337,58724.0,58723.0,0.128]
[1724034432261,0.15418337,58724.0,58723.0,0.1444]
[1724034432510,0.15418337,58724.0,58723.0,0.363603]
[1724034432751,0.15418337,58724.0,58723.0,0.028]
[1724034432752,0.53095416,58724.0,58723.0,0.028]
[1724034432995,0.90499099,58724.0,58723.0,0.028]
[1724034433221,0.95808641,58724.0,58723.0,0.028]
[1724034433428,0.90499099,58724.0,58723.0,0.028]
[1724034433861,0.90499099,58724.0,58723.0,0.014]
[1724034434283,0.66658799,58724.0,58723.0,0.028]
[1724034434505,0.90499099,58724.0,58723.0,0.028]
[1724034434738,0.90499099,58724.0,58719.0,0.0009031]
[1724034434739,0.119207,58721.0,58719.0,0.0009031]
[1724034434946,0.1469,58720.0,58719.0,0.0009031]
[1724034435177,0.16602976,58720.0,58719.0,0.0009031]
[1724034435393,0.52365776,58720.0,58719.0,0.0009031]
[1724034435629,0.28523876,58720.0,58719.0,0.0009031]
[1724034436297,0.28523876,58720.0,58719.0,0.0119031]
[1724034436926,0.4214526,58720.0,58719.0,0.0119031]
[1724034437140,0.4214526,58720.0,58719.0,0.0249031]
[1724034437351,0.6598716,58720.0,58719.0,0.0249031]
[1724034437577,0.8982906,58720.0,58719.0,0.0249031]
[1724034437786,0.8982906,58720.0,58719.0,0.0119031]
[1724034438191,0.8982906,58720.0,58719.0,0.0009031]
[1724034438400,0.8982906,58720.0,58719.0,0.0069031]
[1724034438647,0.8982906,58720.0,58719.0,0.0149031]
[1724034439064,0.8982906,58720.0,58719.0,0.0049031]
[1724034439269,0.8982906,58720.0,58719.0,0.0009031]
[1724034439686,0.8982906,58720.0,58719.0,0.0039031]
[1724034440529,0.8982906,58720.0,58719.0,0.0109031]
[1724034441173,0.8982906,58720.0,58719.0,0.0039031]
[1724034441405,0.8982906,58720.0,58719.0,0.0099031]
[1724034441613,0.8982906,58720.0,58719.0,0.0069031]
[1724034441824,0.8982906,58720.0,58719.0,0.0089031]
[1724034442035,0.8982906,58720.0,58719.0,0.0029031]
[1724034442241,0.8982906,58720.0,58719.0,0.0059031]
[1724034442476,1.1597096,58720.0,58719.0,0.0079031]
[1724034442680,1.1597096,58720.0,58719.0,0.0059031]
[1724034443310,1.1367096,58720.0,58719.0,0.0059031]
[1724034443522,1.1367096,58720.0,58719.0,0.0009031]
[1724034443523,0.8982906,58720.0,58719.0,0.0009031]
[1724034444356,0.8982906,58720.0,58719.0,0.0049031]
[1724034444782,0.8982906,58720.0,58719.0,0.0009031]
[1724034445218,0.8982906,58720.0,58719.0,0.0039031]
[1724034445450,0.8992906,58720.0,58719.0,0.0039031]
[1724034446148,0.6608716,58720.0,58719.0,0.0039031]
[1724034447636,0.8992906,58720.0,58719.0,0.0039031]
[1724034447842,0.6608716,58720.0,58719.0,0.0039031]
[1724034448268,0.8992906,58720.0,58719.0,0.0039031]
[1724034448539,0.6608716,58720.0,58719.0,0.0039031]
[1724034449037,0.8992906,58720.0,58719.0,0.0039031]
[1724034449760,0.6608716,58720.0,58719.0,0.0039031]
[1724034449995,0.8992906,58720.0,58719.0,0.0039031]
[1724034450479,1.1607096,58720.0,58719.0,0.0039031]
[1724034451193,1.24735028,58720.0,58719.0,0.0039031]
[1724034451432,1.48976928,58720.0,58719.0,0.0039031]
[1724034451643,1.32383134,58720.0,58719.0,0.0039031]
[1724034452066,1.23819066,58720.0,58719.0,0.0039031]
[1724034452277,1.47860966,58720.0,58719.0,0.0039031]
[1724034452489,1.50610334,58720.0,58719.0,0.0039031]
[1724034452692,1.55310652,58720.0,58719.0,0.0039031]
[1724034453115,1.55310652,58720.0,58719.0,0.0049031]
[1724034453116,1.55410652,58720.0,58719.0,0.0049031]
[1724034453328,1.67068314,58720.0,58719.0,0.0009031]
[1724034453547,1.33709745,58720.0,58719.0,0.0009031]
[1724034453751,1.33709745,58720.0,58719.0,0.0029031]
[1724034453752,1.34009745,58720.0,58719.0,0.0029031]
[1724034453960,1.55305218,58720.0,58719.0,0.0029031]
[1724034454176,1.31463318,58720.0,58719.0,0.0029031]
[1724034454389,1.31263318,58720.0,58719.0,0.0019031]
[1724034454590,1.2617096,58720.0,58719.0,0.0019031]
[1724034454793,1.2637096,58720.0,58719.0,0.0029031]
[1724034455001,1.31463318,58720.0,58719.0,0.0029031]
[1724034455847,1.31363318,58720.0,58719.0,0.0029031]
[1724034456059,1.2627096,58720.0,58719.0,0.0029031]
[1724034456499,1.2397096,58720.0,58719.0,0.0029031]
[1724034457828,1.2627096,58720.0,58719.0,0.0029031]
[1724034459995,1.1627096,58720.0,58719.0,0.0029031]
[1724034461757,1.28951864,58720.0,58719.0,0.0029031]
[1724034461966,1.29051864,58720.0,58719.0,0.0029031]
[1724034464832,1.1637096,58720.0,58719.0,0.0029031]
[1724034465675,1.0986096,58720.0,58719.0,0.0029031]
[1724034465884,1.1615096,58720.0,58719.0,0.0029031]
[1724034467327,1.1655096,58720.0,58719.0,0.0029031]
[1724034467536,1.1605096,58720.0,58719.0,0.0029031]
[1724034467950,1.0976096,58720.0,58719.0,0.0029031]
[1724034468159,1.0158096,58720.0,58719.0,0.0029031]
[1724034469642,1.0148096,58720.0,58719.0,0.0019031]
[1724034469851,1.0128096,58720.0,58719.0,0.0009031]
[1724034470282,1.0168096,58720.0,58719.0,0.0019031]
[1724034470726,1.0128096,58720.0,58719.0,0.0009031]
[1724034470935,1.0148096,58720.0,58719.0,0.0009031]
[1724034471147,1.0168096,58720.0,58719.0,0.0009031]
[1724034472190,0.7783906,58720.0,58719.0,0.0009031]
[1724034472398,0.7783906,58720.0,58719.0,0.1426031]
[1724034474336,0.7783906,58720.0,58719.0,0.0009031]
[1724034474640,0.7733906,58720.0,58719.0,0.0009031]
[1724034474885,0.77779861,58720.0,58719.0,0.0009031]
[1724034477811,0.15875161,58720.0,58719.0,0.0831031]
[1724034478093,0.02253777,58720.0,58719.0,0.5040371]
[1724034478375,0.02253777,58720.0,58719.0,2.2424601]
[1724034478866,0.004,58720.0,58719.0,0.9808831]
[1724034479094,0.002,58720.0,58719.0,0.9808831]
[1724034479326,0.01188337,58724.0,58723.0,0.50021]
[1724034479560,0.01188337,58724.0,58723.0,0.738617]
[1724034480427,0.01188337,58724.0,58723.0,0.977024]
[1724034480637,0.01188337,58724.0,58723.0,0.738617]
[1724034480860,0.01188337,58724.0,58723.0,0.748617]
[1724034481695,0.01188337,58724.0,58723.0,0.761617]
[1724034482982,0.01188337,58724.0,58723.0,0.52321]
[1724034483221,0.3859202,58724.0,58723.0,0.1656]
[1724034483430,0.3859202,58724.0,58723.0,0.1043]
[1724034483431,0.2667182,58724.0,58723.0,0.1043]
[1724034483646,0.28342786,58724.0,58723.0,0.1043]
[1724034483853,0.52183086,58724.0,58723.0,0.023]
[1724034484062,0.76023386,58724.0,58723.0,0.023]
[1724034485145,0.76023386,58724.0,58723.0,0.01]
[1724034485568,0.76023386,58724.0,58723.0,0.015]
[1724034486029,0.76023386,58724.0,58723.0,0.005]
[1724034486457,0.52183086,58724.0,58723.0,0.005]
[1724034486874,0.52183086,58724.0,58723.0,0.007]
[1724034487111,0.76023386,58724.0,58723.0,0.007]
[1724034487554,0.76023386,58724.0,58723.0,0.002]
[1724034487769,0.119209,58720.0,58719.0,0.0009031]
[1724034487977,0.25542284,58720.0,58719.0,0.0009031]
[1724034488182,0.27051929,58720.0,58719.0,0.0009031]
[1724034488855,0.15131029,58720.0,58719.0,0.0009031]
[1724034489062,0.15131029,58720.0,58719.0,0.0807031]
[1724034489485,0.01509645,58720.0,58719.0,0.1999141]
[1724034489671,0.01509645,58720.0,58719.0,0.0807031]
[1724034489955,0.25028937,58724.0,58719.0,0.0807031]
[1724034489956,0.119206,58722.0,58719.0,0.0837031]
[1724034490182,0.01509709,58720.0,58719.0,0.0807031]
[1724034490394,0.25527484,58722.0,58719.0,0.0847031]
[1724034490603,0.01509737,58720.0,58719.0,0.0847031]
[1724034490784,0.25527484,58722.0,58719.0,0.0807031]
[1724034491047,0.01510031,58720.0,58719.0,0.0807031]
[1724034491282,0.25527484,58722.0,58719.0,0.0807031]
[1724034491705,0.01510042,58721.0,58719.0,0.0807031]
[1724034491918,0.01510042,58721.0,58719.0,0.0937031]
[1724034492121,0.01510042,58721.0,58720.0,0.259409]
[1724034492608,0.01188337,58724.0,58723.0,0.181703]
[1724034492836,0.01188337,58724.0,58723.0,0.1426]
[1724034493503,0.02698988,58724.0,58723.0,0.1426]
[1724034493727,0.01188337,58724.0,58723.0,0.1426]
[1724034493952,0.01188337,58724.0,58723.0,0.1446]
[1724034493953,0.02698988,58724.0,58723.0,0.1446]
[1724034494164,0.01188337,58724.0,58723.0,0.1446]
[1724034494374,0.02698988,58724.0,58723.0,0.1446]
[1724034494588,0.01188337,58724.0,58723.0,0.1446]
[1724034494793,0.02698988,58724.0,58723.0,0.1446]
[1724034495003,0.02698988,58724.0,58723.0,0.1496]
[1724034495004,0.01188337,58724.0,58723.0,0.1496]
[1724034495217,0.02698988,58724.0,58723.0,0.1496]
[1724034495427,0.01188337,58724.0,58723.0,0.1496]
[1724034495639,0.02698988,58724.0,58723.0,0.1496]
[1724034495843,0.01188337,58724.0,58723.0,0.1496]
[1724034496050,0.02698988,58724.0,58723.0,0.1496]
[1724034496266,0.01188337,58724.0,58723.0,0.1496]
[1724034496476,0.02698988,58724.0,58723.0,0.1496]
[1724034496682,0.01188337,58724.0,58723.0,0.1496]
[1724034496889,0.02698988,58724.0,58723.0,0.1496]
[1724034497100,0.01188337,58724.0,58723.0,0.1496]
[1724034497299,0.02698988,58724.0,58723.0,0.1496]
[1724034497504,0.01188337,58724.0,58723.0,0.1496]
[1724034497688,0.02700741,58724.0,58723.0,0.1496]
[1724034497935,0.14620841,58724.0,58723.0,0.1496]
[1724034498152,0.02700741,58724.0,58723.0,0.1496]
[1724034499385,0.02700741,58724.0,58723.0,0.007]
[1724034499386,0.28184224,58724.0,58723.0,0.007]
[1724034499589,0.52024524,58724.0,58723.0,0.007]
[1724034500713,0.75864824,58724.0,58723.0,0.007]
[1724034501117,0.83894824,58724.0,58723.0,0.007]
[1724034501335,0.90454824,58724.0,58723.0,0.007]
[1724034502814,0.75864824,58724.0,58723.0,0.007]
[1724034505461,0.75864824,58724.0,58723.0,0.002]
[1724034506254,0.75864824,58724.0,58723.0,0.006]
[1724034506470,0.75864824,58724.0,58723.0,0.004]
[1724034506858,0.75864824,58724.0,58723.0,0.005]
[1724034507051,0.75864824,58724.0,58723.0,0.004]
[1724034507265,0.357622,58721.0,58720.0,0.0009042]
[1724034507484,0.49369084,58721.0,58720.0,0.0009042]
[1724034507686,0.74723636,58721.0,58720.0,0.0009042]
[1724034507889,0.74428716,58721.0,58720.0,0.0009042]
[1724034509125,0.89008716,58721.0,58720.0,0.0009042]
[1724034509261,0.89008716,58721.0,58720.0,0.0069042]
[1724034509870,1.12850216,58721.0,58720.0,0.0069042]
[1724034510278,1.12850216,58721.0,58720.0,0.0099042]
[1724034511554,1.17952657,58721.0,58720.0,0.0099042]
[1724034512072,1.17952657,58721.0,58720.0,0.0039042]
[1724034512530,1.17952657,58721.0,58720.0,0.0089042]
[1724034513145,1.17952657,58721.0,58720.0,0.0059042]
[1724034513505,1.12850216,58721.0,58720.0,0.0059042]
[1724034513931,1.15150216,58721.0,58720.0,0.0079042]
[1724034514135,1.17114653,58721.0,58720.0,0.0079042]
[1724034514349,1.15150216,58721.0,58720.0,0.0079042]
[1724034514553,1.22807287,58721.0,58720.0,0.0079042]
[1724034514808,1.15150216,58721.0,58720.0,0.0079042]
[1724034515269,1.15150216,58721.0,58720.0,0.0029042]
[1724034515486,1.15150216,58721.0,58720.0,0.0059042]
[1724034515697,1.29961569,58721.0,58720.0,0.0059042]
[1724034515906,1.3761864,58721.0,58720.0,0.0059042]
[1724034516119,1.3761864,58721.0,58720.0,0.0009042]
[1724034516327,1.29961569,58721.0,58720.0,0.0009042]
[1724034516586,1.37918539,58721.0,58720.0,0.0009042]
[1724034517211,1.30561569,58721.0,58720.0,0.0009042]
[1724034517453,1.29961569,58721.0,58720.0,0.0009042]
[1724034517644,1.37718418,58721.0,58720.0,0.0009042]
[1724034517873,1.38018418,58721.0,58720.0,0.0009042]
[1724034518089,1.37918418,58721.0,58720.0,0.0009042]
[1724034518307,1.38118359,58721.0,58720.0,0.0009042]
[1724034518531,1.23307006,58721.0,58720.0,0.0009042]
[1724034518783,1.15650216,58721.0,58720.0,0.0009042]
[1724034519460,1.23306743,58721.0,58720.0,0.0009042]
[1724034519669,1.23406743,58721.0,58720.0,0.0009042]
[1724034520091,1.23306743,58721.0,58720.0,0.0009042]
[1724034520299,1.23406743,58721.0,58720.0,0.0009042]
[1724034520535,1.31816514,58721.0,58720.0,0.0009042]
[1724034520749,1.55658014,58721.0,58720.0,0.0009042]
[1724034520971,1.65867435,58721.0,58720.0,0.0009042]
[1724034521504,1.39591716,58721.0,58720.0,0.0009042]
[1724034521888,1.49801137,58721.0,58720.0,0.0009042]
[1724034522267,1.44488176,58721.0,58720.0,0.0009042]
[1724034522475,1.57249952,58721.0,58720.0,0.0009042]
[1724034523524,1.57246576,58721.0,58720.0,0.0009042]
[1724034523773,1.74399738,58721.0,58720.0,0.0009042]
[1724034524537,1.74799738,58721.0,58720.0,0.0009042]
[1724034525295,1.62041338,58721.0,58720.0,0.0009042]
[1724034526330,1.72041338,58721.0,58720.0,0.0009042]
[1724034527069,1.71841338,58721.0,58720.0,0.0009042]
[1724034527526,1.71941338,58721.0,58720.0,0.0009042]
[1724034527756,1.66038176,58721.0,58720.0,0.0009042]
[1724034528018,1.65720376,58721.0,58720.0,0.0009042]
[1724034528908,1.67120376,58721.0,58720.0,0.0029042]
[1724034529150,1.66120376,58721.0,58720.0,0.0019042]
[1724034529367,1.8327583,58721.0,58720.0,0.0019042]
[1724034529571,1.8437583,58721.0,58720.0,0.0029042]
[1724034530208,1.17148876,58721.0,58720.0,0.0029042]
[1724034530434,1.29901942,58721.0,58720.0,0.0029042]
[1724034530870,1.39001163,58721.0,58720.0,0.0029042]
[1724034531077,1.28798876,58721.0,58720.0,0.0029042]
[1724034532541,1.17250616,58721.0,58720.0,0.0029042]
[1724034532747,1.07048876,58721.0,58720.0,0.0029042]
[1724034532980,1.02152416,58721.0,58720.0,0.0029042]
[1724034533395,1.14700666,58721.0,58720.0,0.1475042]
[1724034533599,1.09803286,58721.0,58720.0,0.1475042]
[1724034534246,1.14700438,58721.0,58720.0,0.1475042]
[1724034536107,1.26350438,58721.0,58720.0,0.0029042]
[1724034536809,1.18699568,58721.0,58720.0,0.0029042]
[1724034537851,1.26350306,58721.0,58720.0,0.0029042]
[1724034538700,1.18699568,58721.0,58720.0,0.0029042]
[1724034539113,1.18799568,58721.0,58720.0,0.0029042]
[1724034539317,1.28900208,58721.0,58720.0,0.0029042]
[1724034542363,1.18699568,58721.0,58720.0,0.0029042]
[1724034542761,1.07049568,58721.0,58720.0,0.0029042]
[1724034542967,1.17255545,58721.0,58720.0,0.0859042]
[1724034544647,1.17255545,58721.0,58720.0,0.1513042]
[1724034544849,0.93414045,58721.0,58720.0,0.1513042]
[1724034545052,0.29256396,58721.0,58720.0,0.1513042]
[1724034545454,0.21808051,58721.0,58720.0,0.1513042]
[1724034545836,0.15602136,58721.0,58720.0,0.1503042]
[1724034546239,0.15702136,58721.0,58720.0,0.1503042]
[1724034547308,0.15302136,58721.0,58720.0,0.1493042]
[1724034547528,0.15702136,58721.0,58720.0,0.1493042]
[1724034548149,0.15302136,58721.0,58720.0,0.1493042]
[1724034548356,0.15302136,58721.0,58720.0,0.1513042]
[1724034551174,0.01695252,58721.0,58720.0,0.1513042]
[1724034551420,0.02240962,58721.0,58720.0,1.61224374]
[1724034551652,0.01188337,58724.0,58723.0,0.981324]
[1724034551887,0.01188337,58724.0,58723.0,1.097824]
[1724034552131,0.01188337,58724.0,58723.0,1.197824]
[1724034552360,0.01188337,58724.0,58723.0,2.936231]
[1724034552826,0.01188337,58724.0,58723.0,2.933231]
[1724034553588,0.01288337,58724.0,58723.0,2.942231]
[1724034553823,0.01288337,58724.0,58723.0,2.933231]
[1724034553824,0.01188337,58724.0,58723.0,2.933231]
[1724034554336,0.01288337,58724.0,58723.0,2.941231]
[1724034554580,0.01288337,58724.0,58723.0,3.115731]
[1724034555071,0.01388337,58724.0,58723.0,3.130731]
[1724034555322,0.01388337,58724.0,58723.0,3.129731]
[1724034556479,0.01388337,58724.0,58723.0,3.130731]
[1724034556742,0.01388337,58724.0,58723.0,3.132731]
[1724034557842,0.01388337,58724.0,58723.0,2.891324]
[1724034560273,0.01388337,58724.0,58723.0,2.892324]
[1724034560497,0.01388337,58724.0,58723.0,2.891324]
[1724034561199,0.01388337,58724.0,58723.0,1.391324]
[1724034561674,0.01388337,58724.0,58723.0,2.891324]
[1724034562129,0.01388337,58724.0,58723.0,2.892324]
[1724034562814,0.01388337,58724.0,58723.0,2.908207]
[1724034564142,0.01388337,58724.0,58723.0,3.07976154]
[1724034564520,0.00821,58731.0,58729.0,0.97564]
[1724034564731,0.00821,58731.0,58729.0,1.67757754]
[1724034564938,0.00821,58731.0,58729.0,1.67657754]
[1724034565144,0.00821,58731.0,58729.0,3.27657754]
[1724034565662,0.00821,58731.0,58729.0,3.03819454]
[1724034566093,0.00821,58731.0,58729.0,2.86664]
[1724034566334,0.00921,58730.0,58729.0,2.87564]
[1724034566681,0.00921,58730.0,58729.0,1.37564]
[1724034566906,0.00921,58730.0,58729.0,1.137257]
[1724034567105,0.00921,58730.0,58729.0,0.846257]
[1724034567331,0.01021,58730.0,58729.0,0.860257]
[1724034574680,0.01021,58730.0,58729.0,0.1643]
[1724034574914,0.01021,58730.0,58729.0,0.023]
[1724034574915,0.277599,58730.0,58729.0,0.023]
[1724034575142,0.29749085,58730.0,58729.0,0.023]
[1724034575353,0.53586985,58730.0,58729.0,0.023]
[1724034575562,0.29749085,58730.0,58729.0,0.023]
[1724034576284,0.29649085,58730.0,58729.0,0.009]
[1724034576717,0.29649085,58730.0,58729.0,0.014]
[1724034577222,0.29749085,58730.0,58729.0,0.024]
[1724034577708,0.29649085,58730.0,58729.0,0.01]
[1724034578125,0.29749085,58730.0,58729.0,0.024]
[1724034578340,0.53586985,58730.0,58729.0,0.024]
[1724034578578,0.29749085,58730.0,58729.0,0.024]
[1724034580148,0.67063381,58730.0,58729.0,0.024]
[1724034580563,0.90901281,58730.0,58729.0,0.024]
[1724034580768,0.67063381,58730.0,58729.0,0.024]
[1724034580976,0.93201281,58730.0,58729.0,0.024]
[1724034582480,0.357616,58722.0,58721.0,0.0009042]
[1724034582692,0.497316,58722.0,58721.0,0.0009042]
[1724034582907,0.51718895,58722.0,58721.0,0.0009042]
[1724034584867,0.89152378,58722.0,58721.0,0.0009042]
[1724034585535,0.89352378,58722.0,58721.0,0.0179042]
[1724034585743,0.89252378,58722.0,58721.0,0.0099042]
[1724034585949,0.89252378,58722.0,58721.0,0.0169042]
[1724034586154,0.75382378,58722.0,58721.0,0.0169042]
[1724034590901,0.82992378,58722.0,58721.0,0.0169042]
[1724034591111,0.89072378,58722.0,58721.0,0.0169042]
[1724034591320,1.15213478,58722.0,58721.0,0.0169042]
[1724034595779,1.26744826,58722.0,58721.0,0.0169042]
[1724034597166,1.15213478,58722.0,58721.0,0.0169042]
[1724034599419,1.01523478,58722.0,58721.0,0.0169042]
[1724034600839,0.77682378,58722.0,58721.0,0.0169042]
[1724034602751,0.51541278,58722.0,58721.0,0.0169042]
[1724034603091,0.27700178,58722.0,58721.0,0.1599042]
[1724034603301,0.51541278,58722.0,58721.0,0.1599042]
[1724034603479,0.27700178,58722.0,58721.0,0.1599042]
[1724034603716,0.15779678,58722.0,58721.0,0.1599042]
[1724034603918,0.27700178,58722.0,58721.0,0.1599042]
[1724034604126,0.51541278,58722.0,58721.0,0.0169042]
[1724034604340,0.27700178,58722.0,58721.0,0.0169042]
[1724034604579,0.51541278,58722.0,58721.0,0.0169042]
[1724034605001,0.27700178,58722.0,58721.0,0.0169042]
[1724034607502,0.27700178,58722.0,58721.0,0.1586042]
[1724034608348,0.14107795,58722.0,58721.0,0.1586042]
[1724034608554,0.02187295,58722.0,58721.0,0.1586042]
[1724034610951,0.02187295,58722.0,58721.0,0.2778112]
[1724034612064,0.02187295,58722.0,58721.0,0.1586042]
[1724034613145,0.02187295,58722.0,58721.0,0.7546412]
[1724034613357,0.02187295,58722.0,58721.0,0.2778112]
[1724034613780,0.02187295,58722.0,58721.0,0.1586042]
[1724034614203,0.02187295,58722.0,58721.0,0.2778112]
[1724034615279,0.02187295,58722.0,58721.0,0.1586042]
[1724034615487,0.14107795,58722.0,58721.0,0.1586042]
[1724034617451,0.37948895,58722.0,58721.0,0.1586042]
[1724034617680,0.84192378,58722.0,58721.0,0.0169042]
[1724034618531,0.53841278,58722.0,58721.0,0.0169042]
[1724034618738,0.53841278,58722.0,58721.0,0.1563042]
[1724034619646,0.02187295,58722.0,58721.0,0.1563042]
[1724034619856,0.02187295,58722.0,58721.0,0.7523412]
[1724034620065,0.002,58722.0,58721.0,0.7523412]
[1724034620276,0.002,58722.0,58721.0,0.5139262]
[1724034620945,0.002,58722.0,58721.0,0.2755112]
[1724034621368,0.002,58722.0,58721.0,0.5139262]
[1724034622247,0.002,58722.0,58721.0,0.7523412]
[1724034622468,0.002,58722.0,58721.0,0.9907562]
[1724034622682,0.002,58722.0,58721.0,1.2817562]
[1724034622927,0.002,58722.0,58721.0,1.45331074]
[1724034623175,0.002,58722.0,58721.0,3.13078491]
[1724034623390,0.002,58722.0,58721.0,3.37119991]
[1724034623616,0.002,58722.0,58721.0,3.12978491]
[1724034623834,0.001,58722.0,58721.0,3.10579896]
[1724034624044,0.002,58722.0,58721.0,3.06885708]
[1724034624691,0.001,58722.0,58721.0,3.06185708]
[1724034624900,0.002,58722.0,58721.0,3.07585708]
[1724034626864,0.002,58722.0,58721.0,1.3937562]
[1724034629950,0.002,58722.0,58721.0,1.56631074]
[1724034630154,0.002,58722.0,58721.0,1.56531074]
[1724034630790,0.002,58722.0,58721.0,3.06531074]
[1724034631627,0.002,58722.0,58721.0,3.30472574]
[1724034632043,0.002,58722.0,58721.0,3.30672574]
[1724034632258,0.002,58722.0,58721.0,3.30872574]
[1724034633952,0.002,58722.0,58721.0,3.31693574]
[1724034642594,0.002,58722.0,58721.0,3.14233574]
[1724034643376,0.00821,58730.0,58729.0,0.380991]
[1724034643641,0.00821,58730.0,58729.0,1.36769454]
[1724034643881,0.00821,58730.0,58729.0,1.60607754]
[1724034644110,0.00821,58730.0,58729.0,3.10607754]
[1724034645077,0.00921,58730.0,58729.0,3.11507754]
[1724034645330,0.00921,58730.0,58729.0,3.12407754]
[1724034645849,0.00921,58730.0,58729.0,3.12607754]
[1724034646294,0.00921,58730.0,58729.0,3.12807754]
[1724034646936,0.00921,58730.0,58729.0,3.12407754]
[1724034648613,0.00921,58730.0,58729.0,3.13417087]
[1724034649665,0.00921,58730.0,58729.0,3.13317087]
[1724034650114,0.00921,58730.0,58729.0,2.89478787]
[1724034651795,0.00921,58730.0,58729.0,2.89578787]
[1724034652215,0.00921,58730.0,58729.0,2.89778787]
[1724034652463,0.00921,58730.0,58729.0,3.13617087]
[1724034652688,0.00921,58730.0,58729.0,3.13817087]
[1724034654395,0.00921,58730.0,58729.0,3.01677087]
[1724034654615,0.00921,58730.0,58729.0,3.13317087]
[1724034655344,0.00921,58730.0,58729.0,3.13617087]
[1724034656209,0.00921,58730.0,58729.0,3.13817087]
[1724034661833,0.00337666,58743.0,58729.0,3.13817087]
[1724034661834,0.00337666,58743.0,58738.0,1.335457]
[1724034662066,0.00337666,58743.0,58738.0,1.48761154]
[1724034662284,0.00337666,58743.0,58738.0,1.24826554]
[1724034662503,0.00337666,58743.0,58738.0,2.86466554]
[1724034662721,0.00337666,58743.0,58738.0,2.72216554]
[1724034662944,0.00337666,58743.0,58738.0,0.812265]
[1724034662945,0.0793,58740.0,58738.0,0.812265]
[1724034663593,0.0632,58741.0,58738.0,0.812265]
[1724034664017,0.08267666,58743.0,58738.0,0.812265]